Cogmind - Beta 12 @@@ ROGUE MODE // 2023.04.23 @ 14:31:54 Player: Decinym Result: Self-destructed Performance ------------- Evolutions (5) 2500 Regions Visited (19) 3800 Robots Destroyed (272) 1360 Value Destroyed (11723) 11723 Prototype IDs (43) 860 Alien Tech Used (0) 0 Bonus (8279) 8279 TOTAL SCORE: 28522 Bonus ------- High Alert Combat Kills 1935 Follower Combat Kills 2473 Entered Garrisons 1000 Used RIF Installer 3000 Aligned with FarCom 300 Friendly Fire -429 Cogmind --------- Core Integrity 461/1000 Matter 43/300 Energy 153/700 System Corruption 17% Temperature Cool (0) Movement Treading (490) Ox4 Location -5/Factory Parts ------- > --- POWER (2) -------- Reinforced Fission Core > --- PROPULSION (5) --- Armored Medium Treads > --- UTILITY (8) ------ Huge Storage Unit Experimental Energy Well Advanced Targeting Computer Weapon Cycler Relay Coupler [NC] (22) > --- WEAPON (2) ------- Improved Heavy Laser Scatter Rocket Array > --- INVENTORY (25) --- High-capacity Storage Unit Advanced Weapon Cycler Thermal Barrier Advanced Force Field Improved Hacking Suite Relay Coupler [NC] (39) Relay Coupler [Sentry] (32) Relay Coupler [Sentry] (26) Long-range Proton Cannon Compact HERF Cannon Nova Cannon 8R-AWN's Boregun Gamma Bomb Array Improved Remote Datajack Improved Plasma Cutter Great Maul Peak State ------------ > --- POWER ------------ Antimatter Reactor Particle Reactor > --- PROPULSION ------- Heavy Treads Heavy Treads Biometal Medium Treads > --- UTILITY ---------- Advanced Cooling System Huge Storage Unit Advanced Targeting Computer Advanced Phase Shifter Layered Medium Armor Plating Advanced Force Field Relay Coupler [NC] Relay Coupler [Grunt] > --- WEAPON ----------- 8R-AWN's Boregun Advanced Remote Datajack > --- INVENTORY -------- Graviton Reactor Biometal Medium Treads Improved Cooling System High-capacity Storage Unit Experimental Energy Well Advanced Weapon Cycler Damper Plating Thermal Barrier Relay Coupler [NC] Relay Coupler [NC] Relay Coupler [Sentry] Relay Coupler [Sentry] Relay Coupler [Specialist] Relay Coupler [Hunter] Relay Coupler [Hunter] Improved Heavy Laser Long-range Proton Cannon Compact HERF Cannon Nova Cannon Gamma Bomb Array Improved Plasma Cutter Great Maul [Rating: 115] Favorites ----------- Power Reinforced Fission Core Engine Improved Ion Engine Power Core Reinforced Fission Core Reactor Particle Reactor Propulsion Light Treads Treads Light Treads Leg Flexi-carbon Leg Wheel Compact Wheel Utility Huge Storage Unit Device Advanced Cooling System Storage Huge Storage Unit Processor Advanced Targeting Computer Hackware Relay Coupler [Grunt] Protection Medium Armor Plating Weapon Improved Assault Rifle Energy Gun Wave Gun Energy Cannon Particle Cannon Ballistic Gun Improved Assault Rifle Launcher Rocket Launcher Special Weapon Remote Datajack Impact Weapon Great Maul Build | -11 -10 -10 -9 -9 -9 -8 -8 -8 -8 -8 -8 -8 -7 -7 -6 -6 -5 -5 -5 ------- Run | Jun Mat Min Mat Min Exi Min Mat Gar Mat Gar Mat Gar Fac Gar Fac Gar Fac Was Fac Slots Evolved 10 | . . . 2 . . . 2 . . . . . 2 . 2 . 2 . . Power 1 | . . . . . . . . . . . . . . . . . 1 . . Propulsion 3 | . . . 1 . . . . . . . . . 1 . 1 . . . . Utility 6 | . . . 1 . . . 2 . . . . . 1 . 1 . 1 . . Weapon . | . . . . . . . . . . . . . . . . . . . . Parts Attached 325 | . 7 . 34 . 21 14 14 20 20 14 23 21 13 22 6 44 3 9 40 Power 22 | . 1 . 2 . 1 2 . . 4 . . . 1 1 . 4 1 1 4 Engine 9 | . 1 . 2 . 1 . . . 2 . . . . 1 . 1 . . 1 Core 4 | . . . . . . 1 . . 1 . . . . . . . 1 . 1 Reactor 9 | . . . . . . 1 . . 1 . . . 1 . . 3 . 1 2 Propulsion 80 | . 2 . 13 . 3 2 3 6 4 2 10 2 6 9 2 5 1 3 7 Treads 64 | . . . 12 . 3 2 3 6 4 2 10 2 6 4 . . . 3 7 Leg 14 | . 1 . 1 . . . . . . . . . . 5 2 5 . . . Wheel 2 | . 1 . . . . . . . . . . . . . . . 1 . . Hover . | . . . . . . . . . . . . . . . . . . . . Flight . | . . . . . . . . . . . . . . . . . . . . Utility 98 | . 2 . 10 . 8 6 6 4 4 7 7 8 2 5 3 10 1 1 14 Device 36 | . 1 . 2 . 5 2 1 3 . 3 3 3 2 1 . 2 1 1 6 Storage 5 | . 1 . 1 . . 1 . . . . . . . . . 1 . . 1 Processor 4 | . . . . . . . 2 . 1 . . . . 1 . . . . . Hackware 17 | . . . . . . . . . 1 2 1 2 . 2 3 4 . . 2 Protection 36 | . . . 7 . 3 3 3 1 2 2 3 3 . 1 . 3 . . 5 Artifact . | . . . . . . . . . . . . . . . . . . . . Weapon 125 | . 2 . 9 . 9 4 5 10 8 5 6 11 4 7 1 25 . 4 15 Energy Gun 37 | . 1 . 1 . . . 4 4 4 5 4 1 2 2 . 6 . 1 2 Energy Cannon 9 | . . . . . 1 . . . 2 . . . 1 . . 1 . . 4 Ballistic Gun 45 | . 1 . 6 . 6 3 . 5 1 . . 6 1 2 1 10 . 2 1 Ballistic Cannon . | . . . . . . . . . . . . . . . . . . . . Launcher 16 | . . . 2 . 2 1 1 1 1 . 1 1 . 1 . 1 . . 4 Special Weapon 9 | . . . . . . . . . . . . . . 1 . 5 . 1 2 Impact Weapon 9 | . . . . . . . . . . . 1 3 . 1 . 2 . . 2 Slashing Weapon . | . . . . . . . . . . . . . . . . . . . . Piercing Weapon . | . . . . . . . . . . . . . . . . . . . . Special Melee Weapon . | . . . . . . . . . . . . . . . . . . . . Unidentified Prototypes 18 | . . . 1 . 3 4 2 . 3 . . . . 1 . . . 1 3 Corrupted Parts 1 | . . . . . . . . . . . . . . . . . . . 1 System Corruption 10 | . . . . . . . . . . . . . . . . . . . 10 Parts Lost 45 | . . . 2 . 9 4 1 5 . 3 3 1 2 . . 3 . . 12 Power 6 | . . . . . 1 . . . . . . . 1 . . 1 . . 3 Propulsion 14 | . . . 1 . 3 1 . 2 . . 1 . . . . 2 . . 4 Utility 18 | . . . 1 . 3 2 1 1 . 2 1 1 1 . . . . . 5 Weapon 7 | . . . . . 2 1 . 2 . 1 1 . . . . . . . . Highest Loss Streak 5 | . . . 1 . 3 2 1 3 . 1 2 1 1 . . 2 . . 5 To Critical Strikes 6 | . . . . . 6 . . . . . . . . . . . . . . Average Slot Usage (%) 97 | . 91 100 99 100 99 99 98 98 99 95 97 99 98 99 99 99 88 89 84 Engine 4 | . 14 14 11 11 10 9 . . 5 . . . . 3 6 2 . . . Core 3 | . . . . . . 1 9 9 3 9 9 9 2 . . . 3 1 . Reactor 1 | . . . . . . . . . . . . . 4 3 . 3 5 9 9 Treads 22 | . . . 31 33 32 33 27 27 26 27 26 27 30 14 . . . 10 17 Leg 5 | . 21 14 1 . . . . . . . . . . 15 32 32 17 6 . Device 11 | . 4 14 7 11 10 6 7 7 14 13 17 10 16 24 11 4 7 13 13 Storage 8 | . 16 14 11 11 11 11 9 9 9 9 9 9 7 7 6 6 5 5 5 Processor 3 | . . . . . . . 7 18 10 1 . . . 1 6 6 5 5 5 Hackware 5 | . . . . . . . . . 7 9 8 9 7 5 14 16 11 11 12 Protection 9 | . . . 14 11 11 15 18 9 3 7 8 16 11 4 6 11 11 8 4 Energy Gun 5 | . 14 14 4 . . . 12 4 9 18 17 . 2 4 . 2 11 . . Ballistic Gun 9 | . 13 14 17 22 20 21 5 13 2 . . 13 10 2 2 6 . 4 1 Special Weapon 1 | . . . . . . . . . . . . . . 5 6 2 . 4 3 Naked Turns . | . . . . . . . . . . . . . . . . . . . . Heaviest Build 180 | 13 52 48 107 102 109 117 119 117 116 126 116 120 124 120 109 132 138 153 180 Greatest Support 175 | 20 20 16 69 69 69 69 63 60 60 60 60 60 82 91 116 118 28 160 175 Greatest Overweight (x) 5 | . 3 2 3 1 1 1 1 2 1 2 1 1 1 1 1 1 4 5 3 Average Overweight (x) . | . . 2 . 1 1 1 1 1 1 1 1 1 1 1 . . 4 1 . Largest Inventory Capacity 25 | . 20 20 25 25 25 25 25 25 25 25 25 25 25 25 25 25 25 25 25 Average Capacity 24 | . 13 20 20 25 25 25 25 25 25 25 25 25 25 25 25 25 25 25 25 Most Carried 25 | . 11 14 25 25 25 24 25 25 25 25 25 25 25 25 25 25 25 25 25 Average Carried 22 | . 8 12 19 25 21 21 24 24 24 23 24 24 24 24 24 24 24 24 23 Final Capacity 25 | 8 20 20 25 25 25 25 25 25 25 25 25 25 25 25 25 25 25 25 25 Final Carried 25 | 6 11 14 25 25 22 24 25 24 25 24 25 25 25 25 25 25 25 25 16 Class Distribution -------------------- 44% | Scavenger-Mutant 29% | Mutant 23% | Botlord-Mutant Dominant Class ---------------- Mutant | -10/Materials Scavenger-Mutant | -10/Mines Scavenger-Mutant | -9/Materials Mutant | -9/Mines Mutant | -9/Exiles Mutant | -8/Mines Scavenger-Mutant | -8/Materials Scavenger-Mutant | -8/Garrison Mutant | -8/Materials Mutant | -8/Garrison Scavenger-Mutant | -8/Materials Scavenger-Mutant | -8/Garrison Scavenger-Mutant | -7/Factory Botlord-Mutant | -7/Garrison Botlord-Mutant | -6/Factory Botlord-Mutant | -6/Garrison Botlord-Mutant | -5/Factory Botlord-Mutant | -5/Waste Botlord-Mutant | -5/Factory Resources | -11 -10 -10 -9 -9 -9 -8 -8 -8 -8 -8 -8 -8 -7 -7 -6 -6 -5 -5 -5 ----------- Run | Jun Mat Min Mat Min Exi Min Mat Gar Mat Gar Mat Gar Fac Gar Fac Gar Fac Was Fac Matter Collected 7282 | 200 44 72 658 58 956 583 440 534 252 164 208 467 432 275 123 874 42 316 584 Remotely . | . . . . . . . . . . . . . . . . . . . . Salvage Created 11491 | . 200 74 1042 108 520 461 975 786 745 366 1077 1057 695 594 44 624 129 604 1390 Parts 664 | . 16 6 81 10 67 24 51 46 46 39 58 72 32 22 4 21 1 13 55 Haulers Intercepted 15 | . 1 . 5 . . . 3 . 2 . 2 . 1 . . . . . 1 Recyclers Shooed 7 | . . . 1 . . . 3 . 2 . . . . . . . 1 . . Parts Field Recycled . | . . . . . . . . . . . . . . . . . . . . Retrieved Matter . | . . . . . . . . . . . . . . . . . . . . Parts Self-Destructed . | . . . . . . . . . . . . . . . . . . . . Prevented . | . . . . . . . . . . . . . . . . . . . . Kills | -11 -10 -10 -9 -9 -9 -8 -8 -8 -8 -8 -8 -8 -7 -7 -6 -6 -5 -5 -5 ------- Run | Jun Mat Min Mat Min Exi Min Mat Gar Mat Gar Mat Gar Fac Gar Fac Gar Fac Was Fac Combat Hostiles Destroyed 220 | . 5 2 25 7 6 10 16 18 11 19 18 23 12 13 1 13 . 2 19 Guns 179 | . 5 2 20 7 2 8 15 17 10 19 15 18 12 13 1 10 . 2 3 Cannons 8 | . . . . . . . . . 1 . . . . . . . . . 7 AOE 29 | . . . 5 . 4 2 1 . . . 3 5 . . . 3 . . 6 Classes Destroyed 24 | . 3 2 4 . 3 1 2 3 1 . . 1 . . 1 1 . 1 1 Worker 9 | . . 1 1 . . 1 2 . 2 . 1 . . . . . . . 1 Builder 5 | . . . 2 . . . . . . . 3 . . . . . . . . Tunneler 4 | . . 1 . . . 1 . . . . 2 . . . . . . . . Hauler 15 | . 1 . 5 . . . 3 . 2 . 2 . 1 . . . . . 1 Recycler 8 | . . . 1 . . 1 2 . 1 . 1 . . . . . 1 . 1 Mechanic 2 | . . . 1 . . . . . . . . . . . . . . . 1 Turret 1 | . . . . . 1 . . . . . . . . . . . . . . Watcher 4 | . . . . . . . 1 . 2 . 1 . . . . . . . . Swarmer 72 | . 3 2 16 7 . 2 8 3 3 10 3 10 . 3 . . . . 2 Cutter 3 | . . . . . . . . 1 . 2 . . . . . . . . . Grunt 80 | . 2 . 2 . . 7 5 8 3 5 9 8 7 9 . 7 . . 8 Brawler 1 | . . . . . . 1 . . . . . . . . . . . . . Duelist 3 | . . . . . . . 1 . 1 . . . . . . 1 . . . Protector 1 | . . . . . . . . . . . . . . . . 1 . . . Sentry 30 | . . . 7 . . . 2 4 3 2 4 3 4 1 . . . . . Demolisher 2 | . . . . . . . . 1 . . . . . . . 1 . . . Specialist 4 | . . . . . . . . 1 . . . . . . . . . . 3 Hunter 7 | . . . . . . . . . 1 . 2 1 . . . 1 . . 2 Programmer 7 | . . . . . . . . . . . . 1 1 . . 1 . . 4 Heavy 1 | . . . . . . . . . . . . . . . . . . . 1 Behemoth 2 | . . . . . . . . . . . . . . . 1 1 . . . Compactor 2 | . . . . . . . . . . . . . . . . . . 2 . Zionite 6 | . . . . . 6 . . . . . . . . . . . . . . Assembled 5 | . . . . . 5 . . . . . . . . . . . . . . Best Kill Streak 7 | . 3 2 5 4 5 4 7 3 5 4 5 5 2 4 1 3 1 1 7 Combat Bots Only 6 | . 3 2 4 4 5 3 5 3 5 4 4 5 2 4 1 3 . 1 6 Max Kills in Single Turn 4 | . 1 1 3 2 3 2 3 1 2 2 4 2 2 1 1 3 1 1 4 Gunslinging 1 | . . . . 1 . . 1 . 1 1 1 1 1 . . 1 . . . Exploded 3 | . . . 3 . 3 1 1 . . . 3 2 . . . 3 . . 3 Melee . | . . . . . . . . . . . . . . . . . . . . Uniques/NPCs Destroyed 4 | . . . . . 4 . . . . . . . . . . . . . . 8R-AWN (-9/Exiles) EX-BIN (-9/Exiles) EX-HEX (-9/Exiles) EX-DEC (-9/Exiles) Combat | -11 -10 -10 -9 -9 -9 -8 -8 -8 -8 -8 -8 -8 -7 -7 -6 -6 -5 -5 -5 -------- Run | Jun Mat Min Mat Min Exi Min Mat Gar Mat Gar Mat Gar Fac Gar Fac Gar Fac Was Fac Damage Taken 16199 | . 214 88 967 139 1226 711 572 1139 287 922 1140 944 684 445 25 2076 8 8 4604 Core 1573 | . 50 23 113 10 111 96 45 66 86 41 94 27 42 50 . 180 . . 539 Absorbed by Shields 1163 | . . . . 60 343 184 . 6 . . . . 314 151 . . 9 8 88 Redirected to Shielding 56 | . . . . . . . 5 . . . . . . . . 51 . . . Regen/Repaired (Parts) 862 | . . . 77 . . . . . 219 . 330 . . . . . . 164 72 Core Remaining (%) 64 | 100 . 70 . . . 17 . . . . . 34 . 86 . 78 . . . Volleys Fired 951 | . 19 11 97 8 108 55 59 74 49 40 68 47 52 41 13 89 2 40 79 Largest 2 | . 2 2 2 2 2 2 2 2 2 2 2 2 2 2 1 2 2 1 2 Hottest 178 | . 60 60 95 46 120 53 90 90 149 130 146 130 160 160 23 160 160 30 178 Shots Fired 1631 | . 38 22 185 16 182 107 117 131 99 78 126 90 104 64 13 128 4 40 87 Gun 1449 | . 38 22 181 16 159 104 116 130 68 78 125 83 104 58 6 104 4 36 17 Cannon 88 | . . . . . 16 . . . 31 . . . . . . . . . 41 Launcher 39 | . . . 4 . 7 3 1 1 . . 1 7 . 1 . 4 . . 10 Special 55 | . . . . . . . . . . . . . . 5 7 20 . 4 19 Kinetic 947 | . 19 11 132 16 159 104 87 95 19 . . 69 98 9 6 78 . 36 9 Thermal 524 | . 19 11 49 . 16 . 5 7 80 78 125 14 6 49 . 26 4 . 35 Explosive 19 | . . . 4 . 7 3 1 1 . . 1 . . 1 . . . . 1 Electromagnetic 86 | . . . . . . . 24 28 . . . 7 . . . 4 . . 23 Robot Hit Streak 31 | . 5 5 16 4 31 9 10 15 19 19 13 17 25 21 16 15 13 8 12 Robot Miss Streak 9 | . 4 4 6 1 6 5 4 3 2 9 4 3 1 5 . 3 1 4 6 Penetration Max 1 | . . . . . 1 . . . . . . . . . . . . 1 1 Secondary Targets 32 | . 1 . 2 3 . 3 5 1 1 5 3 3 3 1 . 1 . . . Max Gunslinging Chain 1 | . 1 . 1 1 . 1 1 1 1 1 1 1 1 1 . 1 . . . Shots Hit Robots 1169 | . 17 10 125 11 128 73 86 69 66 68 98 62 91 56 13 98 4 28 66 Core Hits 632 | . 11 5 56 7 43 29 41 39 24 82 43 49 36 43 3 44 4 4 69 Critical Kills 8 | . . . 1 . . 1 . 1 . . . . 1 . . 1 . 2 1 Critical Parts Destroyed 14 | . . . . . 2 4 . . . . . . 3 . . 2 . 2 1 Critical Strikes 58 | . . . 2 . 2 8 . 1 5 4 7 . 4 . . 9 . 14 2 Burn 17 | . . . 1 . . . . . 5 4 7 . . . . . . . . Destroy 41 | . . . 1 . 2 8 . 1 . . . . 4 . . 9 . 14 2 Melee Attacks 36 | . . . . . . . . . . . 1 22 . 8 . 5 . . . Impact 36 | . . . . . . . . . . . 1 22 . 8 . 5 . . . Slashing . | . . . . . . . . . . . . . . . . . . . . Piercing . | . . . . . . . . . . . . . . . . . . . . Sneak Attacks . | . . . . . . . . . . . . . . . . . . . . Combat Hostiles . | . . . . . . . . . . . . . . . . . . . . Follow-up Attacks . | . . . . . . . . . . . . . . . . . . . . Damage Inflicted 25235 | . 178 89 2396 170 2754 1482 1411 1209 1477 926 2291 1905 1449 1129 87 2061 80 520 3621 Guns 18289 | . 178 89 1837 170 1749 1147 1375 1209 1161 926 2020 940 1449 1129 87 1793 80 520 430 Cannons 2293 | . . . . . 562 . . . 307 . . . . . . . . . 1424 Explosions 4256 | . . . 556 . 391 306 36 . . . 248 778 . . . 268 . . 1673 Melee 187 | . . . . . . . . . . . . 187 . . . . . . . Ramming 210 | . . . 3 . 52 29 . . 9 . 23 . . . . . . . 94 Kinetic 10335 | . 85 33 1164 170 1749 1147 952 776 186 . . 691 1295 76 87 1206 . 520 198 Thermal 9106 | . 93 56 673 . 562 . 102 . 1282 926 2020 249 154 1053 . 587 80 . 1269 Explosive 2234 | . . . 556 . 391 306 . . . . 248 . . . . . . . 733 Electromagnetic 3163 | . . . . . . . 357 433 . . . 778 . . . 268 . . 1327 Impact 187 | . . . . . . . . . . . . 187 . . . . . . . Slashing . | . . . . . . . . . . . . . . . . . . . . Piercing . | . . . . . . . . . . . . . . . . . . . . Highest Corruption 17 | . . . . . . . . 1 1 1 1 2 . . . . . . 17 Average Corruption 1 | . . . . . . . . 1 1 1 1 1 . . . . . . 3 Corruption Purged . | . . . . . . . . . . . . . . . . . . . . Corruption Blocked . | . . . . . . . . . . . . . . . . . . . . Effects 77 | . . . . . . . . 9 14 6 9 16 . . . . . . 23 Message Errors 18 | . . . . . . . . 2 2 . 5 3 . . . . . . 6 Matter Fused 16 | . . . . . . . . 2 3 1 1 1 . . . . . . 8 Heat Flow Errors 9 | . . . . . . . . 1 4 . 2 1 . . . . . . 1 Energy Discharges 11 | . . . . . . . . . 2 1 1 5 . . . . . . 2 Parts Rejected 3 | . . . . . . . . 1 . . . . . . . . . . 2 Data Loss (minor) 9 | . . . . . . . . . 1 4 . 2 . . . . . . 2 Data Loss (major) 3 | . . . . . . . . 1 1 . . 1 . . . . . . . Misfires 6 | . . . . . . . . 1 1 . . 3 . . . . . . 1 Alerts 1 | . . . . . . . . 1 . . . . . . . . . . . Weapon Failures 1 | . . . . . . . . . . . . . . . . . . . 1 Overload Shots . | . . . . . . . . . . . . . . . . . . . . Overflow Damage 331 | . . . 30 . 75 . . . 5 . . 24 . . . 8 . . 189 Projectiles 198 | . . . . . 41 . . . 5 . . . . . . . . . 152 Explosions 84 | . . . 30 . 34 . . . . . . . . . . 8 . . 12 Melee 49 | . . . . . . . . . . . . 24 . . . . . . 25 Knockbacks 2 | . . . . . . . . . . . . 1 . . . . . . 1 Impact 2 | . . . . . . . . . . . . 1 . . . . . . 1 Kinetic . | . . . . . . . . . . . . . . . . . . . . Secondary . | . . . . . . . . . . . . . . . . . . . . Self-Inflicted Damage 431 | . . . 16 . 27 . 14 . . . . 25 . . . 21 . . 328 Shots 34 | . . . 1 . 1 . 1 . . . . 1 . . . 1 . . 29 Rammed 20 | . . 1 1 . 11 2 . . 1 . 2 . . . . . . . 2 Targets Rammed 22 | . . 1 1 . 11 3 . . 1 . 2 . . . . . . . 3 Kicked . | . . . . . . . . . . . . . . . . . . . . Crushed 2 | . . . . . . 1 . . . . . . . . . . . . 1 Highest Temperature 757 | . 32 . 195 . 416 214 135 253 356 144 448 263 228 433 . 15 12 . 757 Average Temperature 81 | . 16 . 59 . 72 61 35 73 72 68 130 78 35 177 . 5 8 . 184 Received Heat Transfer 4614 | . 18 . 177 . . 346 297 297 126 306 630 378 329 275 . 483 . 3 949 Effects 22 | . . . . . 1 . . . . . 4 . . . . . . . 17 Shutdowns 4 | . . . . . . . . . . . . . . . . . . . 4 Energy Bleed 3 | . . . . . 1 . . . . . . . . . . . . . 2 Interference 5 | . . . . . . . . . . . 2 . . . . . . . 3 Matter Decay 2 | . . . . . . . . . . . . . . . . . . . 2 Short Circuit 5 | . . . . . . . . . . . 1 . . . . . . . 4 Damage (minor) 1 | . . . . . . . . . . . 1 . . . . . . . . Damage (major) 2 | . . . . . . . . . . . . . . . . . . . 2 Siege Activations . | . . . . . . . . . . . . . . . . . . . . Robots Corrupted 7 | . . . . . . . . 1 . . . 2 . . . . . . 4 Combat Hostiles 4 | . . . . . . . . 1 . . . . . . . . . . 3 Parts Fried 17 | . . . . . . . 5 2 . . . 2 . . . 4 . . 4 Impact Corruptions 4 | . . . . . . . . . . . . 2 . . . . . . 2 Robots Melted . | . . . . . . . . . . . . . . . . . . . . Combat Hostiles . | . . . . . . . . . . . . . . . . . . . . Parts Melted 31 | . 1 . 4 . 1 . . . 5 . 12 2 1 3 . 2 . . . Heat Transferred 16960 | . 200 125 1247 . 1280 . 198 . 2405 1540 4297 419 350 2375 . 1176 175 . 1173 Parts Sabotaged 2 | . . . . . . . . . . . . . . . . . . . 2 Parts Stolen . | . . . . . . . . . . . . . . . . . . . . Parts Stripped . | . . . . . . . . . . . . . . . . . . . . Power Chain Reactions 5 | . . . . . . . 1 . . . . 3 . . . . . . 1 Missiles Intercepted . | . . . . . . . . . . . . . . . . . . . . Alert | -11 -10 -10 -9 -9 -9 -8 -8 -8 -8 -8 -8 -8 -7 -7 -6 -6 -5 -5 -5 ------- Run | Jun Mat Min Mat Min Exi Min Mat Gar Mat Gar Mat Gar Fac Gar Fac Gar Fac Was Fac Peak Influence 1593 | . 164 130 445 348 . 143 368 964 717 778 416 1076 841 1593 912 1550 881 308 1334 Initial 835 | . . 63 . 173 . . 24 . 455 90 378 96 564 483 835 634 802 308 . Average 497 | . 91 56 249 285 . 53 192 543 381 372 199 676 658 1078 864 1207 853 166 705 Maximum Alert Level 4 | . . . 2 1 . . 1 3 3 3 2 3 3 4 3 4 3 1 4 Low Security (%) 30 | . 100 100 29 . . 100 40 9 21 17 65 5 . . . . . 56 30 Level 1 25 | . . . 63 99 . . 59 27 30 41 32 18 . . . . . 43 2 Level 2 15 | . . . 7 . . . . 26 46 40 2 31 74 16 . . . . 6 Level 3 17 | . . . . . . . . 36 . . . 44 25 32 100 28 100 . 30 Level 4 11 | . . . . . . . . . . . . . . 51 . 70 . . 29 Level 5 . | . . . . . . . . . . . . . . . . . . . . High Security . | . . . . . . . . . . . . . . . . . . . . Max Security . | . . . . . . . . . . . . . . . . . . . . Squads Dispatched 37 | . 2 . 2 . . . 1 . 3 . 5 . 6 . 1 . 1 . 16 Investigation 10 | . 1 . 1 . . . 1 . 1 . 1 . . . . . 1 . 4 Extermination 3 | . . . . . . . . . . . . . 1 . . . . . 2 Reinforcement 17 | . 1 . 1 . . . . . 2 . 2 . 2 . 1 . . . 8 Assault 2 | . . . . . . . . . . . . . . . . . . . 2 Garrison 5 | . . . . . . . . . . . 2 . 3 . . . . . . Intercept . | . . . . . . . . . . . . . . . . . . . . Searches Triggered . | . . . . . . . . . . . . . . . . . . . . Construction Impeded 3 | . . . . . . . . . . . 1 . . . . . . . 2 Haulers Reinforced 4 | . . . . . . . . . . . . . 2 . 1 . . . 1 Active Scanning Responses . | . . . . . . . . . . . . . . . . . . . . Cargo Convoy Interrupts 1 | . . . . . . . . . . . . . . . . . . . 1 Stealth | -11 -10 -10 -9 -9 -9 -8 -8 -8 -8 -8 -8 -8 -7 -7 -6 -6 -5 -5 -5 --------- Run | Jun Mat Min Mat Min Exi Min Mat Gar Mat Gar Mat Gar Fac Gar Fac Gar Fac Was Fac Distress Signals 13 | . 1 . 3 . . . 2 . . . 2 . 2 . . . . . 3 Communications Jammed . | . . . . . . . . . . . . . . . . . . . . Distress Signals . | . . . . . . . . . . . . . . . . . . . . Times Spotted 448 | . 11 3 43 6 52 14 27 25 19 24 32 29 14 27 7 46 . 5 64 Peak Tracking Total 9 | . 4 3 7 3 9 3 5 3 3 4 5 6 3 5 4 6 . 3 8 Tactical Retreats 31 | . . . 1 . 17 4 1 2 . . 1 2 . 2 . . . . 1 Traps | -11 -10 -10 -9 -9 -9 -8 -8 -8 -8 -8 -8 -8 -7 -7 -6 -6 -5 -5 -5 ------- Run | Jun Mat Min Mat Min Exi Min Mat Gar Mat Gar Mat Gar Fac Gar Fac Gar Fac Was Fac Traps Triggered 46 | . 1 . . . . . 1 7 1 9 1 13 . 7 . 2 2 . 2 Indirectly 2 | . . . . . . . . . . . . 2 . . . . . . . Trap Hack Attempts . | . . . . . . . . . . . . . . . . . . . . Triggered . | . . . . . . . . . . . . . . . . . . . . Disarmed . | . . . . . . . . . . . . . . . . . . . . Reprogrammed . | . . . . . . . . . . . . . . . . . . . . Reused . | . . . . . . . . . . . . . . . . . . . . Traps Extracted . | . . . . . . . . . . . . . . . . . . . . Installed . | . . . . . . . . . . . . . . . . . . . . Triggered . | . . . . . . . . . . . . . . . . . . . . Exploded 3 | . . . . . 3 . . . . . . . . . . . . . . Machines | -11 -10 -10 -9 -9 -9 -8 -8 -8 -8 -8 -8 -8 -7 -7 -6 -6 -5 -5 -5 ---------- Run | Jun Mat Min Mat Min Exi Min Mat Gar Mat Gar Mat Gar Fac Gar Fac Gar Fac Was Fac Machines Disabled 44 | . . . 1 . 8 1 1 5 3 1 1 4 . 5 . 4 . . 10 Max in Single Turn 2 | . . . 1 . 2 1 1 1 1 1 1 1 . 1 . 1 . . 2 Garrison Relay 17 | . . . . . . . . 5 . 1 . 3 . 5 . 3 . . . Machines Repaired . | . . . . . . . . . . . . . . . . . . . . Machines Sabotaged . | . . . . . . . . . . . . . . . . . . . . Overloaded Fab Kills . | . . . . . . . . . . . . . . . . . . . . Hacking | -11 -10 -10 -9 -9 -9 -8 -8 -8 -8 -8 -8 -8 -7 -7 -6 -6 -5 -5 -5 --------- Run | Jun Mat Min Mat Min Exi Min Mat Gar Mat Gar Mat Gar Fac Gar Fac Gar Fac Was Fac Machines Accessed 72 | . 2 1 7 . 2 . 7 3 11 4 8 4 1 3 3 1 3 . 12 Terminals 56 | . 2 1 6 . . . 6 3 8 4 5 4 . 3 2 1 2 . 9 Fabricators 1 | . . . . . . . . . . . . . . . . . . . 1 Repair Stations 6 | . . . 1 . . . . . 1 . 2 . . . . . . . 2 Recycling Units . | . . . . . . . . . . . . . . . . . . . . Scanalyzers 1 | . . . . . . . . . 1 . . . . . . . . . . Garrison Access 6 | . . . . . . . 1 . 1 . 1 . 1 . 1 . 1 . . Total Hacks 214 | . 6 1 16 . 2 . 16 6 50 10 41 6 1 5 4 4 13 . 33 Successful 94 | . 2 1 4 . 2 . 5 2 23 2 27 2 1 2 1 1 4 . 15 Failed 120 | . 4 . 12 . . . 11 4 27 8 14 4 . 3 3 3 9 . 18 Catastrophic 26 | . 1 . 2 . . . 2 . 6 2 4 1 . 2 1 . 1 . 4 Database Lockouts . | . . . . . . . . . . . . . . . . . . . . Manual 83 | . 6 . 12 . 1 . 10 . 18 2 10 . . 1 3 . 9 . 11 Terminals 154 | . 6 1 12 . . . 14 6 32 10 19 6 . 5 3 4 12 . 24 Fabricators 3 | . . . . . . . . . . . . . . . . . . . 3 Repair Stations 35 | . . . 4 . . . . . 4 . 21 . . . . . . . 6 Recycling Units . | . . . . . . . . . . . . . . . . . . . . Scanalyzers 13 | . . . . . . . . . 13 . . . . . . . . . . Garrison Access 7 | . . . . . . . 2 . 1 . 1 . 1 . 1 . 1 . . Terminal Hacks 37 | . 2 1 2 . 2 . 2 2 7 2 6 2 . 2 . 1 . . 6 Record 1 | . . . . . 1 . . . . . . . . . . . . . . Part Schematic 1 | . . . . . . . . . . . . . . . . . . . 1 Robot Analysis 3 | . 2 . . . . . . . 1 . . . . . . . . . . Open Door 3 | . . . . . . . . 1 . 1 . . . 1 . . . . . Branch Access Points 2 | . . . 1 . . . . . . . . . . . . . . . 1 Emergency Access Points 4 | . . . . . . . . 1 . . . 1 . 1 . 1 . . . Machine Index 1 | . . . . . . . . . 1 . . . . . . . . . . Terminal Index 1 | . . . . . . . . . . . . . . . . . . . 1 Alert Level 1 | . . . . . . . . . 1 . . . . . . . . . . Unreport Threat 8 | . . . . . . . 2 . 3 . 3 . . . . . . . . Patrol Status 1 | . . 1 . . . . . . . . . . . . . . . . . Recall Investigation 1 | . . . . . . . . . . . . . . . . . . . 1 Zone Layout 7 | . . . 1 . . . . . 1 . 3 . . . . . . . 2 Garrison Registry 2 | . . . . . . . . . . 1 . 1 . . . . . . . EX-Prototype ID Bank 1 | . . . . . 1 . . . . . . . . . . . . . . Fabricator Hacks 3 | . . . . . . . . . . . . . . . . . . . 3 Load Schematic 1 | . . . . . . . . . . . . . . . . . . . 1 Build 2 | . . . . . . . . . . . . . . . . . . . 2 Repair Station Hacks 24 | . . . 2 . . . . . 3 . 16 . . . . . . . 3 Scan Component 14 | . . . 1 . . . . . 2 . 9 . . . . . . . 2 Repair 10 | . . . 1 . . . . . 1 . 7 . . . . . . . 1 Recycling Unit Hacks . | . . . . . . . . . . . . . . . . . . . . Scanalyzer 8 | . . . . . . . . . 8 . . . . . . . . . . Insert Component 2 | . . . . . . . . . 2 . . . . . . . . . . Analyze 6 | . . . . . . . . . 6 . . . . . . . . . . Garrison Access Hacks 6 | . . . . . . . 1 . 1 . 1 . 1 . 1 . 1 . . Unlock Access 6 | . . . . . . . 1 . 1 . 1 . 1 . 1 . 1 . . Unauthorized Hacks 16 | . . . . . . . 2 . 4 . 4 . . . . . 3 . 3 Terminals 16 | . . . . . . . 2 . 4 . 4 . . . . . 3 . 3 Track 1 | . . . . . . . . . . . 1 . . . . . . . . Botnet 13 | . . . . . . . 2 . 4 . 2 . . . . . 2 . 3 Operators 2 | . . . . . . . . . . . 1 . . . . . 1 . . Fabricators . | . . . . . . . . . . . . . . . . . . . . Repair Stations . | . . . . . . . . . . . . . . . . . . . . Recycling Units . | . . . . . . . . . . . . . . . . . . . . Scanalyzers . | . . . . . . . . . . . . . . . . . . . . Garrison Access . | . . . . . . . . . . . . . . . . . . . . Data Cores Recovered . | . . . . . . . . . . . . . . . . . . . . Used . | . . . . . . . . . . . . . . . . . . . . Hacking Detections 60 | . 2 1 6 . . . 7 1 10 2 8 3 . 2 3 1 3 . 11 Full Trace Events 8 | . . . 1 . . . . . 1 . . . . . . 1 1 . 4 Feedback Events . | . . . . . . . . . . . . . . . . . . . . Feedback Blocked . | . . . . . . . . . . . . . . . . . . . . Robot Schematics Acquired . | . . . . . . . . . . . . . . . . . . . . Robots Built . | . . . . . . . . . . . . . . . . . . . . Authchips . | . . . . . . . . . . . . . . . . . . . . Time . | . . . . . . . . . . . . . . . . . . . . Total Robot Build Rating . | . . . . . . . . . . . . . . . . . . . . Part Schematics Acquired 3 | . . . . . . . . . 2 . . . . . . . . . 1 Parts Built 2 | . . . . . . . . . . . . . . . . . . . 2 Authchips . | . . . . . . . . . . . . . . . . . . . . Time 245 | . . . . . . . . . . . . . . . . . . . 245 Total Part Build Rating 16 | . . . . . . . . . . . . . . . . . . . 16 Parts Repaired 10 | . . . 1 . . . . . 1 . 7 . . . . . . . 1 Time 578 | . . . 26 . . . . . 56 . 388 . . . . . . . 108 Parts Recycled . | . . . . . . . . . . . . . . . . . . . . Recycled Matter . | . . . . . . . . . . . . . . . . . . . . Retrieved Matter . | . . . . . . . . . . . . . . . . . . . . Retrieved Components . | . . . . . . . . . . . . . . . . . . . . Parts Scanalyzed 2 | . . . . . . . . . 2 . . . . . . . . . . Part Schematics Acquired 2 | . . . . . . . . . 2 . . . . . . . . . . Parts Damaged . | . . . . . . . . . . . . . . . . . . . . Bothacking | -11 -10 -10 -9 -9 -9 -8 -8 -8 -8 -8 -8 -8 -7 -7 -6 -6 -5 -5 -5 ------------ Run | Jun Mat Min Mat Min Exi Min Mat Gar Mat Gar Mat Gar Fac Gar Fac Gar Fac Was Fac Used RIF Installer 6 | . . . . . . . . 1 . 1 . 2 . 1 . 1 . . . Coupler Efficiency 1 | . . . . . . . . . . . . . . . . 1 . . . Hotswap 1 | . . . . . . . . . . 1 . . . . . . . . . Command Fork 2 | . . . . . . . . . . . . 2 . . . . . . . Zone Cloak 1 | . . . . . . . . . . . . . . 1 . . . . . Robots Hacked 34 | . . . . . . . . . . . . . . 3 5 13 . 4 9 Non-combat 4 | . . . . . . . . . . . . . . . 2 . . . 2 Combat 30 | . . . . . . . . . . . . . . 3 3 13 . 4 7 Robot Hacks Applied 39 | . . . . . . . . . . . . . . 3 7 13 . 4 12 parse_system 5 | . . . . . . . . . . . . . . . . 1 . 1 3 no_distress 1 | . . . . . . . . . . . . . . . 1 . . . . find_fabricator 1 | . . . . . . . . . . . . . . . 1 . . . . drop_inventory 2 | . . . . . . . . . . . . . . . 2 . . . . map_route 2 | . . . . . . . . . . . . . . . . . . . 2 ignore_targets 3 | . . . . . . . . . . . . . . . . . . 3 . go_dormant 1 | . . . . . . . . . . . . . . . . 1 . . . formatsys_high 24 | . . . . . . . . . . . . . . 3 3 11 . . 7 Relay Couplers Released 83 | . . . . . . . . 25 . 5 . 15 . 21 . 13 . . 4 Machine Destruction 71 | . . . . . . . . 21 . 5 . 11 . 21 . 13 . . . Programmers 12 | . . . . . . . . 4 . . . 4 . . . . . . 4 Attached 15 | . . . . . . . . . . 2 . 2 . 2 3 4 . . 2 Fabnet Peak Effective % . | . . . . . . . . . . . . . . . . . . . . Robots Rewired 10 | . . . . . . . . . . . . 3 . 6 . 1 . . . Allies Hacked 1 | . . . . . . . . . . . . . . . . . . . 1 Hacks Repelled . | . . . . . . . . . . . . . . . . . . . . Allies | -11 -10 -10 -9 -9 -9 -8 -8 -8 -8 -8 -8 -8 -7 -7 -6 -6 -5 -5 -5 -------- Run | Jun Mat Min Mat Min Exi Min Mat Gar Mat Gar Mat Gar Fac Gar Fac Gar Fac Was Fac Total Allies 71 | . . 2 . . . . . 2 . 2 . 3 . 13 5 16 . 20 8 Largest Group 21 | . . 2 2 . . . . 2 . 2 2 3 . 12 9 8 5 21 21 Highest-Rated Group 747 | . . 54 54 . . . . 50 . 64 64 84 . 275 272 276 276 747 747 Highest-Rated Ally 148 | . . 31 31 . . . . 25 . 39 39 39 . 32 47 148 148 50 50 Total Orders 4 | . . . . . . . . . . . . . . . . 4 . . . STAY 2 | . . . . . . . . . . . . . . . . 2 . . . FOLLOW 2 | . . . . . . . . . . . . . . . . 2 . . . Ally Attacks 585 | . . . 14 . . . . 19 . 10 32 19 . 76 12 141 5 87 170 Total Damage 16147 | . . . 167 . . . . 424 . 239 562 299 . 1605 247 3176 119 2201 7108 Kills 107 | . . . 4 . . . . 3 . 5 5 6 . 15 2 22 1 5 39 Allies Corrupted 2 | . . . . . . . . . . . . . . . . . . . 2 Allies Melted . | . . . . . . . . . . . . . . . . . . . . Intel | -11 -10 -10 -9 -9 -9 -8 -8 -8 -8 -8 -8 -8 -7 -7 -6 -6 -5 -5 -5 ------- Run | Jun Mat Min Mat Min Exi Min Mat Gar Mat Gar Mat Gar Fac Gar Fac Gar Fac Was Fac Robot Analysis Total 3 | . 2 . . . . . . . 1 . . . . . . . . . . Derelict Logs Recovered 4 | . . 3 . 1 . . . . . . . . . . . . . . . Drone Launches . | . . . . . . . . . . . . . . . . . . . . Drone Recoveries . | . . . . . . . . . . . . . . . . . . . . Exploration | -11 -10 -10 -9 -9 -9 -8 -8 -8 -8 -8 -8 -8 -7 -7 -6 -6 -5 -5 -5 ------------- Run | Jun Mat Min Mat Min Exi Min Mat Gar Mat Gar Mat Gar Fac Gar Fac Gar Fac Was Fac Turns Passed 22087 | . 347 827 1993 310 2639 891 1132 1899 1171 1208 1721 1578 487 1690 312 1416 173 912 1381 Spaces Moved 8996 | 1 218 604 863 120 925 295 383 681 388 397 482 548 140 694 220 787 100 462 688 Core . | . . . . . . . . . . . . . . . . . . . . Treads 6473 | . . . 807 120 925 295 383 681 388 397 482 548 140 298 . . . 321 688 Legs 1531 | 1 127 . . . . . . . . . . . . 396 220 787 . . . Wheels 992 | . 91 604 56 . . . . . . . . . . . . . 100 141 . Hover . | . . . . . . . . . . . . . . . . . . . . Flight . | . . . . . . . . . . . . . . . . . . . . Fastest Speed 120 | 120 120 130 130 240 240 240 240 240 240 240 240 240 236 190 120 120 160 160 155 Average Speed 200 | 120 125 130 181 240 240 240 240 240 240 267 240 240 236 211 121 137 160 167 161 Slowest Speed 385 | 120 145 130 240 240 240 240 240 320 240 320 240 240 240 240 190 190 160 240 385 Overloaded Moves . | . . . . . . . . . . . . . . . . . . . . Propulsion Burnouts . | . . . . . . . . . . . . . . . . . . . . Robots Hopped . | . . . . . . . . . . . . . . . . . . . . Cave-ins Triggered . | . . . . . . . . . . . . . . . . . . . . Exploration Rate (%) 51 | 2 36 96 68 33 90 65 28 89 38 58 40 84 4 80 11 82 5 90 24 Regions Visited 19 Branch Regions 4 Pre-discovered Areas 1 | . . . . . 1 . . . . . . . . . . . . . . Known Exits Taken 6 | . . . 1 . . . 1 . 1 . 1 . 1 . 1 . . . . Unknown Exits Taken 6 | 1 1 1 . 1 1 1 . . . . . . . . . . . . . Scrap Searched 2 | . . 1 . . . 1 . . . . . . . . . . . . . Spaces Dug 60 | . . . 7 . . . 11 15 . . 1 9 . 13 . 3 . . 1 Terrain Destroyed 230 | . . . 30 . 27 31 15 16 3 . 17 16 . 13 . 5 . . 57 Melee 16 | . . . . . . . . . . . 1 9 . 3 . 3 . . . Projectile 27 | . . . . . 1 4 . 2 3 . 8 . . . . 2 . . 7 AOE 187 | . . . 30 . 26 27 15 14 . . 8 7 . 10 . . . . 50 Terrain Rammed . | . . . . . . . . . . . . . . . . . . . . Walls Destroyed . | . . . . . . . . . . . . . . . . . . . . Machines Disabled . | . . . . . . . . . . . . . . . . . . . . Actions | -11 -10 -10 -9 -9 -9 -8 -8 -8 -8 -8 -8 -8 -7 -7 -6 -6 -5 -5 -5 --------- Run | Jun Mat Min Mat Min Exi Min Mat Gar Mat Gar Mat Gar Fac Gar Fac Gar Fac Was Fac Total 11597 | . 255 626 1126 127 1164 385 488 821 566 473 979 697 233 866 254 986 109 567 875 Wait 740 | . 3 8 74 . 67 6 12 11 72 . 366 9 9 9 9 6 . 41 38 Move 8982 | . 217 603 862 119 924 294 383 680 388 396 481 547 140 693 220 786 100 461 688 Hop . | . . . . . . . . . . . . . . . . . . . . Pick Up 168 | . 4 3 26 . 18 6 6 7 14 2 18 10 8 18 4 13 2 2 7 Fast Attach 97 | . 3 . 7 . 2 6 8 6 7 5 6 4 1 3 . 9 2 7 21 Attach 78 | . . . 8 . 10 5 2 4 5 4 5 6 6 8 3 6 1 . 5 Detach 17 | . 1 . 2 . 1 1 2 . 3 1 . 1 1 . . 1 . 1 2 Swap 150 | . 4 . 19 . 9 3 4 10 8 5 12 11 6 11 3 29 . 2 14 Drop 222 | . 4 . 30 . 14 6 12 15 19 4 20 15 10 20 1 22 2 13 15 Fire 951 | . 19 11 97 8 108 55 59 74 49 40 68 47 52 41 13 89 2 40 79 Melee 36 | . . . . . . . . . . . 1 22 . 8 . 5 . . . Ram 1 | . . 1 . . . . . . . . . . . . . . . . . Kick . | . . . . . . . . . . . . . . . . . . . . Crush 21 | . . . 1 . 11 3 . . 1 . 2 . . . . . . . 3 Escape Stasis 80 | . . . . . . . . 14 . 16 . 18 . 26 . 6 . . . Rewire 54 | . . . . . . . . . . . . 7 . 29 1 14 . . 3 Trap . | . . . . . . . . . . . . . . . . . . . . Miscellaneous . | . . . . . . . . . . . . . . . . . . . . Route ------- -11/Junkyard -10/Materials (discovered 3 exits: *Mat / *Min x2) -10/Mines (discovered 2 exits: *Mat x2) -9/Materials (discovered 4 exits: *Mat x3 / *Min) -9/Mines (discovered 2 exits: *Mat / *Exi) -9/Exiles -8/Mines -8/Materials (discovered 2 exits: *Fac / Gar) -8/Garrison (discovered 4 exits: *Mat x4) -8/Materials (discovered 2 exits: *Fac / Gar) -8/Garrison (discovered 4 exits: *Fac x3 / *Mat) -8/Materials (discovered 2 exits: Fac / Gar) -8/Garrison (discovered 3 exits: *Fac x3) -7/Factory (discovered 2 exits: Sto / Gar) -7/Garrison (discovered 2 exits: *Fac x2) -6/Factory -6/Garrison (discovered 3 exits: *Fac x3) -5/Factory -5/Waste -5/Factory (discovered 3 exits: [*Fac] / Upp x2) History --------- Turn | Location | Event 1 | -11/Junkyard | Discovered new exit (range 0) 1 | -11/Junkyard | Entered Materials 157 | -10/Materials | Discovered new exit (range 6) 251 | -10/Materials | Discovered new exit (range 14) 334 | -10/Materials | Discovered new exit (range 11) 348 | -10/Materials | Entered Mines 528 | -10/Mines | Build established: Scavenger-Mutant 619 | -10/Mines | Learned 2 Materials zone layouts 723 | -10/Mines | Discovered new exit (range 8) 738 | -10/Mines | Discovered new exit (range 12) 907 | -10/Mines | Received a Rocket Launcher from a helpful Derelict 943 | -10/Mines | Learned 2 Materials zone layouts 1175 | -10/Mines | Entered Materials 1175 | -9/Materials | Accompanied by 2 allies 1175 | -9/Materials | Evolved 2 slots: Propulsion x1, Utility x1 1180 | -9/Materials | Led the pair of lost Derelicts to an unsafe place 1380 | -9/Materials | Repaired Lgt. Armor Plating 1583 | -9/Materials | Discovered new exit (range 8) 2209 | -9/Materials | Discovered new exit (range 4) 2476 | -9/Materials | Build established: Mutant 2838 | -9/Materials | Discovered new exit (range 10) 2885 | -9/Materials | Identified exit to Mines 3168 | -9/Materials | Entered Mines 3221 | -9/Mines | Learned Materials interactive machine intel 3238 | -9/Mines | Discovered new exit (range 13) 3298 | -9/Mines | Deemed a non-threat by the Exiles lab entrance 3300 | -9/Mines | Discovered new exit (range 5) 3478 | -9/Mines | Entered Exiles 3543 | -9/Exiles | Met 8R-AWN 3574 | -9/Exiles | Met EX-HEX 3670 | -9/Exiles | Met EX-DEC 3687 | -9/Exiles | Learned location of Zion (-6) 4335 | -9/Exiles | Met EX-BIN 4366 | -9/Exiles | Aligned with FarCom system 4369 | -9/Exiles | Given EX-Vault access code 4429 | -9/Exiles | Opened EX-Vault 4446 | -9/Exiles | Found Gui. Plasma Cannon 4500 | -9/Exiles | Warned to stay clear of 0b10 Research branches 4614 | -9/Exiles | Attacked by the Exiles 4766 | -9/Exiles | Lost 3 parts (1p2u) 4844 | -9/Exiles | Lost 3 parts (2n1w) 4848 | -9/Exiles | Core integrity fell below 50% 4888 | -9/Exiles | Destroyed 8R-AWN 4912 | -9/Exiles | Lost 3 parts (1n1u1w) 4921 | -9/Exiles | Found Prototype Ballistic Gun 5293 | -9/Exiles | Identified 8R-AWN's Boregun 5334 | -9/Exiles | Destroyed EX-BIN 5346 | -9/Exiles | Destroyed EX-HEX 5704 | -9/Exiles | Destroyed EX-DEC 5810 | -9/Exiles | Found Prototype Device 5811 | -9/Exiles | Identified System Purifier 6088 | -9/Exiles | Discovered new exit (range 12) 6117 | -9/Exiles | Entered Mines 6150 | -8/Mines | NK-0LA came to Exiles' defense 6865 | -8/Mines | Found Prototype Device 6865 | -8/Mines | Identified Thermal Barrier 6910 | -8/Mines | Discovered new exit (range 10) 6926 | -8/Mines | Core integrity fell below 20% 7008 | -8/Mines | Entered Materials 7008 | -8/Materials | Evolved 2 slots: Utility x2 7009 | -8/Materials | Loaded intel: 19 interactive machine locations 7213 | -8/Materials | Build established: Scavenger-Mutant 7566 | -8/Materials | Discovered new exit (range 8) 8140 | -8/Materials | Identified exit to Garrison 8140 | -8/Materials | Entered Garrison 8192 | -8/Garrison | Triggered checkpoint 8255 | -8/Garrison | Garrison Relay disabled 8359 | -8/Garrison | Rescued a captive Derelict 8360 | -8/Garrison | Rescued a captive Derelict 8532 | -8/Garrison | Discovered new exit (range 12) 8544 | -8/Garrison | Garrison Relay disabled 8634 | -8/Garrison | Triggered checkpoint 8671 | -8/Garrison | Garrison Relay disabled 8816 | -8/Garrison | Triggered checkpoint 8904 | -8/Garrison | Discovered new exit (range 12) 8918 | -8/Garrison | Triggered checkpoint 9073 | -8/Garrison | Discovered new exit (range 5) 9152 | -8/Garrison | Triggered checkpoint 9191 | -8/Garrison | Garrison Relay disabled 9356 | -8/Garrison | Triggered checkpoint 9453 | -8/Garrison | Discovered new exit (range 9) 9492 | -8/Garrison | Triggered checkpoint 9532 | -8/Garrison | Garrison Relay disabled 9919 | -8/Garrison | Installed Relay Interface Framework 10039 | -8/Garrison | Entered Materials 10069 | -8/Materials | Lost 3 parts (2n1w) 10599 | -8/Materials | Build established: Mutant 10683 | -8/Materials | Discovered new exit (range 10) 11107 | -8/Materials | Repaired Rnf. Fission Core 11210 | -8/Materials | Identified exit to Garrison 11210 | -8/Materials | Entered Garrison 11448 | -8/Garrison | Triggered checkpoint 11488 | -8/Garrison | Garrison Relay disabled 11563 | -8/Garrison | Discovered new exit (range 68) 11563 | -8/Garrison | Discovered new exit (range 56) 11563 | -8/Garrison | Discovered new exit (range 29) 11563 | -8/Garrison | Discovered new exit (range 67) 11740 | -8/Garrison | Triggered checkpoint 11922 | -8/Garrison | Triggered checkpoint 12088 | -8/Garrison | Rescued a captive Derelict 12089 | -8/Garrison | Rescued a captive Derelict 12138 | -8/Garrison | Expanded RIF knowledge: Hotswap 12218 | -8/Garrison | Build established: Scavenger-Mutant 12286 | -8/Garrison | Triggered checkpoint 12374 | -8/Garrison | Triggered checkpoint 12418 | -8/Garrison | Entered Materials 12418 | -8/Materials | Accompanied by 2 allies 12680 | -8/Materials | Repaired Graviton Reactor? 12732 | -8/Materials | Repaired Lgt. Treads 12811 | -8/Materials | Repaired Broken Adv. Cooling System 12838 | -8/Materials | Repaired Lgt. Armor Plating 12896 | -8/Materials | Repaired Wave Gun 13073 | -8/Materials | Repaired Adv. Weapon Cycler 13101 | -8/Materials | Repaired Lgt. Armor Plating 13246 | -8/Materials | Core integrity fell below 50% 13946 | -8/Materials | Garrison activated, responded to threat 14019 | -8/Materials | Discovered new exit (range 17) 14123 | -8/Materials | Identified exit to Garrison 14139 | -8/Materials | Entered Garrison 14336 | -8/Garrison | Triggered checkpoint 14371 | -8/Garrison | Garrison Relay disabled 14548 | -8/Garrison | Triggered checkpoint 14580 | -8/Garrison | Triggered checkpoint 14591 | -8/Garrison | Triggered checkpoint 14731 | -8/Garrison | Expanded RIF knowledge: Command Fork 14750 | -8/Garrison | Discovered new exit (range 12) 14960 | -8/Garrison | Triggered checkpoint 15018 | -8/Garrison | Garrison Relay disabled 15114 | -8/Garrison | Expanded RIF knowledge: Command Fork 15404 | -8/Garrison | Triggered checkpoint 15480 | -8/Garrison | Discovered new exit (range 10) 15620 | -8/Garrison | Garrison Relay disabled 15676 | -8/Garrison | Discovered new exit (range 14) 15690 | -8/Garrison | Discovered new exit (range 69) 15690 | -8/Garrison | Discovered new exit (range 12) 15690 | -8/Garrison | Discovered new exit (range 54) 15717 | -8/Garrison | Entered Factory 15717 | -7/Factory | Evolved 2 slots: Propulsion x1, Utility x1 15718 | -7/Factory | Identified exit to Storage 15839 | -7/Factory | Garrison activated, responded to threat 16204 | -7/Factory | Identified exit to Garrison 16204 | -7/Factory | Entered Garrison 16256 | -7/Garrison | Triggered checkpoint 16334 | -7/Garrison | Expanded RIF knowledge: Zone Cloak 16354 | -7/Garrison | Garrison Relay disabled 16504 | -7/Garrison | Triggered checkpoint 16592 | -7/Garrison | Triggered checkpoint 16647 | -7/Garrison | Garrison Relay disabled 16713 | -7/Garrison | Rescued a captive Derelict 16723 | -7/Garrison | Rescued a captive Derelict 16804 | -7/Garrison | Discovered new exit (range 10) 16961 | -7/Garrison | Build established: Botlord-Mutant 16992 | -7/Garrison | Triggered checkpoint 17020 | -7/Garrison | Triggered checkpoint 17362 | -7/Garrison | Triggered checkpoint 17405 | -7/Garrison | Garrison Relay disabled 17490 | -7/Garrison | Garrison Relay disabled 17784 | -7/Garrison | Discovered new exit (range 10) 17817 | -7/Garrison | Garrison Relay disabled 17894 | -7/Garrison | Entered Factory 17894 | -6/Factory | Accompanied by 6 allies 17894 | -6/Factory | Evolved 2 slots: Propulsion x1, Utility x1 18085 | -6/Factory | Spotted B-75 Beast 18097 | -6/Factory | Destroyed B-75 Beast 18204 | -6/Factory | Identified exit to Garrison 18206 | -6/Factory | Entered Garrison 18206 | -6/Garrison | Accompanied by 8 allies 18216 | -6/Garrison | Triggered checkpoint 18254 | -6/Garrison | Triggered checkpoint 18297 | -6/Garrison | Expanded RIF knowledge: Coupler Efficiency 18333 | -6/Garrison | Spotted B-75 Beast 18350 | -6/Garrison | Triggered checkpoint 18357 | -6/Garrison | Allies destroyed B-75 Beast 18562 | -6/Garrison | Triggered checkpoint 18563 | -6/Garrison | Discovered new exit (range 15) 18613 | -6/Garrison | Garrison Relay disabled 18622 | -6/Garrison | Triggered checkpoint 18774 | -6/Garrison | Triggered checkpoint 18837 | -6/Garrison | Discovered new exit (range 10) 18902 | -6/Garrison | Triggered checkpoint 18925 | -6/Garrison | Garrison Relay disabled 18992 | -6/Garrison | Triggered checkpoint 19073 | -6/Garrison | Garrison Relay disabled 19138 | -6/Garrison | Discovered new exit (range 8) 19155 | -6/Garrison | Spotted B-90 Cyclops 19163 | -6/Garrison | Spotted B-75 Beast 19177 | -6/Garrison | Allies destroyed B-90 Cyclops 19205 | -6/Garrison | Destroyed B-75 Beast 19275 | -6/Garrison | Rewired B-90 Cyclops 19553 | -6/Garrison | Found Gamma Bomb Array 19622 | -6/Garrison | Entered Factory 19622 | -5/Factory | Accompanied by 5 allies 19622 | -5/Factory | Evolved 2 slots: Power x1, Utility x1 19764 | -5/Factory | Identified exit to Garrison 19795 | -5/Factory | Sucked down chute 19795 | -5/Factory | Entered Waste 19796 | -5/Waste | Met a frightened Derelict 19824 | -5/Waste | Spotted C-40 Crusher 19824 | -5/Waste | Spotted C-40 Crusher 19834 | -5/Waste | Spotted C-40 Crusher 19839 | -5/Waste | Spotted C-40 Crusher 19845 | -5/Waste | 3 allies followed down the chute 19847 | -5/Waste | Allies destroyed C-40 Crusher 19848 | -5/Waste | Destroyed C-40 Crusher 19868 | -5/Waste | Spotted C-40 Crusher 19909 | -5/Waste | Destroyed C-40 Crusher 19954 | -5/Waste | Allies destroyed C-40 Crusher 20060 | -5/Waste | Allies destroyed C-40 Crusher 20261 | -5/Waste | Warlord forces began an assault 20396 | -5/Waste | Discovered new exit (range 13) 20634 | -5/Waste | Found Damper Plating 20707 | -5/Waste | Entered Factory 20707 | -5/Factory | Accompanied by 21 allies 21133 | -5/Factory | Fabricated Biometal Medium Treads? 21250 | -5/Factory | Identified exit to Upper Caves 21283 | -5/Factory | Found Prototype Launcher 21283 | -5/Factory | Identified Scatter Rocket Array 21307 | -5/Factory | First assault squad dispatched 21325 | -5/Factory | Repaired Graviton Reactor 21730 | -5/Factory | Cargo convoy interrupted 21841 | -5/Factory | Discovered new exit (range 7) 21901 | -5/Factory | Lost 3 parts (1p2u) 22050 | -5/Factory | Lost 5 parts (1p2n2u) 22067 | -5/Factory | System corruption reached 10% 22081 | -5/Factory | Core integrity fell below 50% 22088 | -5/Factory | Self-destructed Last Messages --------------- 22076_ Destroyed Lgt. Angular Momentum Engine. 22076_ G-50 Soldier destroyed. 22077_ The unstable cave ceiling collapses. 22078_ C-30 ARC bursts open, deploying its payload. 22078_ G-67 Veteran unfolds itself. 22078_ G-50 Soldier unfolds itself. 22078_ L-41 Fighter unfolds itself. 22078_ I-47 Archangel unfolds itself. 22078_ P-70 Sage resets H-71 Marshal, system corruption cleaned. 22079_ Nuclear Reactor explodes. 22079_ G-67 Veteran destroyed. 22082_ The unstable cave ceiling collapses. 22082_ H-71 Marshal IFF system glitched. 22082_ Broken Biometal Medium Treads destroyed. 22082_ P-70 Sage resets H-71 Marshal, system corruption cleaned. 22084_ Lgt. Angular Momentum Engine destroyed. 22084_ Critical hit (Burn: +37). 22086_ The unstable cave ceiling collapses. 22086_ Broken Arm. Medium Treads severed. 22088_ System corrupted: Energy discharge (-89). Map ----- +----------------------------------------------------+ | # #???????????????? | | # #??????#####????? | | # | #??????? ###### | | # #?##???? # | | # ## ???? # | | # ! ## #???? # | | # = ## #???? ## # | | # %[ ## #???###### # | | # =][! ## #????????# # | | #####%%#### #??####### # | | ????#=!! ![#??# # | | ???#!%!# =%#??# #####+## | | ??# #!## !!/#### # | | ????#=# *%[/ + """""" | | ????# % ! ###### """""" | | ????#!# ! #????# """??? | | ????# / < #????# """??? | | ???##!# #????# ? | | ???#" # ????# ? ? | | ???#"! # #????# ??? | | ##### # ##?????######## | | # [ ####?????# | | # Hi==% %! #?????# """ | | ; [p!%[ #### #?????# | | % g # ####### """ | | @l "" [ # # | | "! # # """ | | %H [% % # # | | g # + """ | | p # | | # # # """ | | # # | | # # | | # ##### | | # | | # | | ## # ## ^ | | ??#### # #??# | | ??????###????# ^ | | ?????????????# | | ?????????????# | | ????????????######+####### | | ????????????# # | | ????????????# """ """ # | | ????????????# """ """ # | | ????????????# """ """ # | | ????????????# "" !# | | ????????????#! "" ] # | | ????????????# # | | ????????????#[[ # | +----------------------------------------------------+ Best States ------------- Heat Dissipation 89 Coolant Potential 50 Energy Generation 47 Energy Capacity 750 Matter Stores 300 Matter Capacity 300 Sight Range 16 Terrain Scan Density 10 Armor Coverage 1600 Resistance: TH 50 Resistance: EM 90 Core Shielding 30 Weapon Cycling 25 Phase Shifting 15 Evasion (%) 55 Targeting Accuracy 8 Recoil Reduction 5 Offensive Hacking 10 Defensive Hacking 14 Relay Coupler Types 3 Relay Coupler Value 85 Item Schematics ----------------- Cmb. Antigrav System | -8/Materials | Scanalyzed Graviton Reactor | -8/Materials | Scanalyzed Biometal Medium Treads | -5/Factory | Hacked Robot Schematics ------------------ None Fabricated ------------ Biometal Medium Treads | x2 | -5/Factory Alien Tech Used ----------------- None Achievements -------------- None Challenges ------------ None Game ------ Seed DimensionalBombPick Manual? 0 Play Time 02:30:45 Cumulative 317.7 hours Start 2023.04.21 @ 14:27:19 End 2023.04.23 @ 14:31:54 Sessions 14 Manual Loads 0 Difficulty Rogue Special Mode None Game No. 344 Rogue 344 Adventurer 0 Explorer 0 Win Type - Total 27 Types 16/3/2/1/2/0/3/0/0 Lore% 85 Gallery% 83 Achievement% 82 Wizard Run 0 Options --------- ASCII 0 Keyboard 0 Movement Arrows Keybinds 0 Fullscreen 2 Font 24/Smallcaps Map View 76x50 Tactical HUD 1 Map Filters NONE Filters NONE Steam 1 RUN: f6304eea-73c6-438c-9fb3-e38f1f6e8085